[Event "18th Charleroi Open-C 2019"]
[Site "Charleroi"]
[Date "2019.07.29"]
[Round "3.1"]
[White "Van Hille, Clara"]
[Black "Lenoir, Aurele"]
[Result "1-0"]
[ECO "C27"]
[WhiteElo "1391"]
[BlackElo "1592"]
[Annotator "NA"]
[PlyCount "53"]
[EventDate "2019.07.22"]
[EventType "swiss"]
[EventCountry "BEL"]
[SourceTitle "playchess.com"]
[Source "ChessBase"]
[SourceQuality "1"]
[TimeControl "40/5400+30:1800+30"]

1. e4 {[%emt 0:00:00]} d6 {[%emt 0:00:08]} 2. Nc3 {[%emt 0:00:00]} Nf6 {[%emt 0:00:52]} 3. Bc4 {[%emt 0:04:22]} e5 {[%emt 0:02:01]} 4. d3 {[%emt 0:01:11]} Nbd7 {[%emt 0:00:24]} 5. f4 {[%emt 0:00:45]} c6 {[%emt 0:00:43]} 6. Bb3 {[%emt 0:00:56]} Qc7 {[%emt 0:00:34]} 7. a3 {[%emt 0:03:18]} Be7 {[%emt 0:04:01]} 8. Nf3 {[%emt 0:00:29]} h6 {[%emt 0:01:06]} 9. O-O {[%emt 0:01:59]} Nf8 {[%emt 0:02:57]} 10. fxe5 {[%emt 0:04:06]} dxe5 {[%emt 0:00:12]} 11. Nh4 {[%emt 0:04:54]} g6 {[%emt 0:10:35]} 12. h3 {[%emt 1:14:00]} Be6 {[%emt 0:04:58]} 13. Bxe6 {[%emt 0:00:00]} Nxe6 {[%emt 0:01:31]} 14. Be3 {[%emt 0:00:00]} Nh5 {[%emt 0:07:47]} 15. Nf5 {[%emt 0:00:00]} Nhf4 {[%emt 0:04:56]} 16. Nxe7 {[%emt 0:00:00]} Qxe7 {[%emt 0:00:49]} 17. Qg4 {[%emt 0:00:00]} h5 {[%emt 0:05:49]} 18. Qg3 {[%emt 0:00:00]} h4 {[%emt 0:02:44]} 19. Qg4 {[%emt 0:00:00]} g5 {[%emt 0:02:18]} 20. Rae1 {[%emt 0:00:00]} Nd4 {[%emt 0:04:33]} 21. Bxd4 {[%emt 0:00:00]} exd4 {[%emt 0:00:59]} 22. Ne2 {[%emt 0:00:00]} Ne6 {[%emt 0:02:00]} 23. Rf5 {[%emt 0:00:00]} f6 {[%emt 0:02:10]} 24. Ref1 {[%emt 0:00:00]} Rf8 {[%emt 0:00:46]} 25. Qh5+ {[%emt 0:00:00]} Kd7 {[%emt 0:00:15]} 26. Qf3 {[%emt 0:00:00]} Qc5 {[%emt 0:01:28]} 27. Rxc5 {[%emt 0:00:00]} 1-0

[Event "18th Charleroi Open-C 2019"]
[Site "Charleroi"]
[Date "2019.07.29"]
[Round "3.2"]
[White "Pouliart, Sander"]
[Black "Sofia, Tommaso"]
[Result "1/2-1/2"]
[ECO "C50"]
[WhiteElo "1375"]
[BlackElo "1580"]
[Annotator "NA"]
[PlyCount "80"]
[EventDate "2019.07.22"]
[EventType "swiss"]
[EventCountry "BEL"]
[SourceTitle "playchess.com"]
[Source "ChessBase"]
[SourceQuality "1"]
[TimeControl "40/5400+30:1800+30"]

1. e4 {[%emt 1:30:30]} e5 {[%emt 1:30:30]} 2. Nf3 {[%emt 0:00:00]} Nc6 {[%emt 0:00:00]} 3. Bc4 {[%emt 0:00:00]} Bc5 {[%emt 0:00:00]} 4. Nc3 {[%emt 0:00:00]} Nf6 {[%emt 0:00:00]} 5. O-O {[%emt 0:00:00]} O-O {[%emt 0:00:00]} 6. d3 {[%emt 0:00:00]} d6 {[%emt 0:00:00]} 7. h3 {[%emt 0:00:00]} Be6 {[%emt 0:00:00]} 8. Bb3 {[%emt 0:00:00]} Qd7 {[%emt 0:00:00]} 9. Bxe6 {[%emt 0:00:00]} fxe6 {[%emt 0:00:00]} 10. Na4 {[%emt 0:00:00]} Bb6 {[%emt 0:00:00]} 11. Nxb6 {[%emt 0:00:00]} axb6 {[%emt 0:00:00]} 12. Bd2 {[%emt 0:00:00]} Ne7 {[%emt 0:00:00]} 13. Nh2 {[%emt 0:00:00]} Ng6 {[%emt 0:00:00]} 14. Ng4 {[%emt 0:06:30]} Nf4 {[%emt 0:00:00]} 15. Bxf4 {[%emt 0:00:00]} exf4 {[%emt 0:00:00]} 16. Nxf6+ {[%emt 0:00:00]} Rxf6 {[%emt 0:00:00]} 17. Qf3 {[%emt 0:00:00]} e5 {[%emt 0:00:00]} 18. g4 {[%emt 0:00:00]} Qf7 {[%emt 0:00:00]} 19. a3 {[%emt 0:00:00]} Rd8 {[%emt 0:00:00]} 20. c4 {[%emt 0:00:00]} Qd7 {[%emt 0:00:00]} 21. Kh2 {[%emt 0:00:00]} Qc6 {[%emt 0:00:00]} 22. g5 {[%emt 0:00:00]} Re6 {[%emt 0:00:00]} 23. h4 {[%emt 0:00:00]} Qc5 {[%emt 0:00:00]} 24. h5 {[%emt 0:00:00]} c6 {[%emt 0:00:00]} 25. Qg4 {[%emt 0:00:00]} Re7 {[%emt 0:00:00]} 26. f3 {[%emt 0:00:00]} Qd4 {[%emt 0:00:00]} 27. Qg1 {[%emt 0:06:30]} Qxb2+ {[%emt 0:13:00]} 28. Qf2 {[%emt 0:00:30]} Qxf2+ {[%emt 0:00:00]} 29. Rxf2 {[%emt 0:00:00]} d5 {[%emt 0:00:00]} 30. cxd5 {[%emt 0:00:00]} cxd5 {[%emt 0:00:00]} 31. g6 {[%emt 0:00:00]} hxg6 {[%emt 0:00:00]} 32. hxg6 {[%emt 0:00:00]} Re6 {[%emt 0:00:00]} 33. Rg2 {[%emt 0:00:00]} dxe4 {[%emt 0:00:00]} 34. dxe4 {[%emt 0:00:00]} Rdd6 {[%emt 0:00:00]} 35. Rc1 {[%emt 0:00:00]} Rxg6 {[%emt 0:00:00]} 36. Rc7 {[%emt 0:00:00]} Rh6+ {[%emt 0:00:00]} 37. Kg1 {[%emt 0:00:00]} Rd1+ {[%emt 0:00:00]} 38. Kf2 {[%emt 0:00:00]} Rd2+ {[%emt 0:00:00]} 39. Kg1 {[%emt 0:00:44]} Rxg2+ {[%emt 0:00:00]} 40. Kxg2 {[%emt 0:05:16]} Rh8 {[%emt 0:00:00]} 1/2-1/2

[Event "18th Charleroi Open-C 2019"]
[Site "Charleroi"]
[Date "2019.07.29"]
[Round "3.3"]
[White "Majewski, Maryian"]
[Black "Dejasse, Daniel"]
[Result "1/2-1/2"]
[ECO "B88"]
[WhiteElo "1366"]
[BlackElo "1568"]
[Annotator "NA"]
[PlyCount "137"]
[EventDate "2019.07.22"]
[EventType "swiss"]
[EventCountry "BEL"]
[SourceTitle "playchess.com"]
[Source "ChessBase"]
[SourceQuality "1"]
[TimeControl "40/5400+30:1800+30"]

1. e4 {[%emt 0:00:00]} c5 {[%emt 1:30:30]} 2. Nf3 {[%emt 0:00:00]} Nc6 {[%emt 0:00:30]} 3. d4 {[%emt 0:00:25]} cxd4 {[%emt 0:00:30]} 4. Nxd4 {[%emt 0:00:01]} Nf6 5. Nc3 {[%emt 1:32:04]} e6 {[%emt 0:00:00]} 6. a3 Be7 {[%emt 0:01:30]} 7. Bc4 {[%emt 0:01:00]} O-O {[%emt 0:00:30]} 8. O-O {[%emt 0:00:30]} Qc7 {[%emt 0:00:30]} 9. Bb3 {[%emt 0:00:30]} a6 {[%emt 0:00:30]} 10. Be3 {[%emt 0:00:30]} b5 {[%emt 0:00:30]} 11. f4 {[%emt 0:00:30]} d6 {[%emt 0:00:30]} 12. f5 {[%emt 0:00:30]} Nxd4 {[%emt 0:00:30]} 13. Bxd4 {[%emt 0:00:30]} Bd7 {[%emt 0:00:00]} 14. Qe2 {[%emt 0:00:30]} Rfe8 {[%emt 0:00:00]} 15. e5 {[%emt 0:00:00]} dxe5 {[%emt 0:00:00]} 16. Bxe5 {[%emt 0:00:00]} Qc5+ {[%emt 0:00:00]} 17. Kh1 {[%emt 0:00:00]} exf5 {[%emt 0:00:00]} 18. Bxf6 {[%emt 0:00:00]} Bxf6 {[%emt 0:00:00]} 19. Qd3 {[%emt 0:00:00]} Rad8 {[%emt 0:00:00]} 20. Qd5 {[%emt 0:00:00]} Qe7 {[%emt 0:00:00]} 21. Qb7 {[%emt 0:00:00]} Bc8 {[%emt 0:00:00]} 22. Qxe7 {[%emt 0:00:00]} Rxe7 {[%emt 0:00:00]} 23. Rad1 {[%emt 0:00:00]} Red7 {[%emt 0:00:00]} 24. Rxd7 {[%emt 0:00:00]} Rxd7 {[%emt 0:00:00]} 25. Re1 {[%emt 0:00:00]} Kf8 {[%emt 0:00:00]} 26. Kg1 {[%emt 0:00:00]} Bb7 {[%emt 0:00:00]} 27. Rd1 {[%emt 0:06:30]} Rxd1+ {[%emt 0:00:00]} 28. Nxd1 {[%emt 0:00:00]} Ke7 {[%emt 0:00:00]} 29. c3 {[%emt 0:00:00]} g5 {[%emt 0:00:00]} 30. Ne3 {[%emt 0:00:00]} f4 {[%emt 0:01:07]} 31. Nd5+ {[%emt 0:00:00]} Bxd5 {[%emt 0:00:06]} 32. Bxd5 {[%emt 0:00:00]} h5 {[%emt 0:01:59]} 33. Kf2 {[%emt 0:00:00]} Be5 {[%emt 0:00:12]} 34. Ke2 {[%emt 0:00:00]} f3+ {[%emt 0:00:35]} 35. Kxf3 {[%emt 0:00:00]} Bxh2 {[%emt 0:00:08]} 36. c4 {[%emt 0:00:00]} bxc4 {[%emt 0:00:09]} 37. Bxc4 {[%emt 0:00:00]} a5 {[%emt 0:00:04]} 38. b4 {[%emt 0:00:00]} axb4 {[%emt 0:08:40]} 39. axb4 {[%emt 0:00:00]} f6 {[%emt 0:00:00]} 40. Ke4 {[%emt 0:01:42]} Kd6 {[%emt 0:00:00]} 41. Bf7 {[%emt 0:04:48]} h4 {[%emt 0:00:00]} 42. Kf5 {[%emt 0:05:03]} Ke7 {[%emt 0:00:00]} 43. Be6 {[%emt 0:02:24]} Bd6 {[%emt 0:00:13]} 44. b5 {[%emt 0:01:15]} g4 {[%emt 0:00:57]} 45. Bd5 {[%emt 0:01:32]} h3 {[%emt 0:04:02]} 46. gxh3 {[%emt 0:03:20]} gxh3 {[%emt 0:00:14]} 47. Bc6 {[%emt 0:00:17]} Be5 {[%emt 0:02:52]} 48. Be4 {[%emt 0:00:22]} Bd4 {[%emt 0:01:34]} 49. Bc6 {[%emt 0:00:23]} Kd6 {[%emt 0:25:38]} 50. Bh1 {[%emt 0:20:24]} Kc5 {[%emt 0:00:00]} 51. Bc6 {[%emt 0:00:00]} h2 {[%emt 0:00:00]} 52. Kf4 {[%emt 0:00:00]} Kc4 {[%emt 0:00:00]} 53. Kg3 {[%emt 0:00:00]} Be5+ {[%emt 0:00:00]} 54. Kg2 {[%emt 0:00:00]} Kd4 {[%emt 0:00:00]} 55. Bd7 {[%emt 0:00:00]} Ke4 {[%emt 0:00:00]} 56. Bc6+ {[%emt 0:00:00]} Kf5 {[%emt 0:00:00]} 57. Bd7+ {[%emt 0:00:00]} Kg5 {[%emt 0:00:00]} 58. Bc6 {[%emt 0:00:00]} Kh4 {[%emt 0:00:00]} 59. Bd7 {[%emt 0:00:00]} Kg5 {[%emt 0:00:00]} 60. Bc6 {[%emt 0:00:00]} f5 {[%emt 0:00:00]} 61. Bd5 {[%emt 0:00:00]} Kg4 {[%emt 0:00:00]} 62. Bf3+ {[%emt 0:00:00]} Kf4 {[%emt 0:00:08]} 63. Bc6 {[%emt 0:00:00]} Ke3 {[%emt 0:00:25]} 64. Bb7 {[%emt 0:00:00]} Ke2 {[%emt 0:03:22]} 65. Bf3+ {[%emt 0:00:00]} Kd3 {[%emt 0:00:26]} 66. Bc6 {[%emt 0:00:00]} Kc4 {[%emt 0:00:22]} 67. Bd7 {[%emt 0:00:00]} f4 {[%emt 0:00:38]} 68. Bc6 {[%emt 0:00:00]} Kc5 {[%emt 0:00:58]} 69. Kxh2 {[%emt 0:01:31]} 1/2-1/2

[Event "18th Charleroi Open-C 2019"]
[Site "Charleroi"]
[Date "2019.07.29"]
[Round "4.1"]
[White "Maris, Lauri"]
[Black "Palstermans, Koen"]
[Result "1-0"]
[ECO "B01"]
[WhiteElo "1314"]
[BlackElo "1437"]
[Annotator "NA"]
[PlyCount "81"]
[EventDate "2019.07.22"]
[EventType "swiss"]
[EventCountry "BEL"]
[SourceTitle "playchess.com"]
[Source "ChessBase"]
[SourceQuality "1"]
[TimeControl "40/5400+30:1800+30"]

1. e4 {[%emt 0:00:00]} d5 {[%emt 0:00:01]} 2. exd5 {[%emt 0:00:19]} Nf6 {[%emt 0:00:18]} 3. c4 {[%emt 0:00:35]} e6 {[%emt 0:00:07]} 4. dxe6 {[%emt 0:00:14]} Bxe6 {[%emt 0:00:12]} 5. Nf3 {[%emt 0:00:31]} Qe7 {[%emt 0:00:19]} 6. Qe2 {[%emt 0:01:26]} Nc6 {[%emt 1:32:03]} 7. d4 {[%emt 0:01:37]} Nb4 {[%emt 0:10:39]} 8. a3 {[%emt 0:00:00]} Nd3+ 9. Qxd3 {[%emt 0:00:00]} Ng4 {[%emt 0:06:08]} 10. Be2 {[%emt 0:01:30]} O-O-O {[%emt 0:01:30]} 11. Nc3 {[%emt 0:00:00]} g6 {[%emt 0:01:05]} 12. O-O {[%emt 0:02:30]} Bf5 {[%emt 0:01:40]} 13. Qd1 {[%emt 0:00:00]} Bg7 {[%emt 0:01:18]} 14. Re1 {[%emt 0:00:00]} Qd7 {[%emt 0:06:46]} 15. d5 {[%emt 0:00:00]} h5 {[%emt 1:06:30]} 16. Bd3 {[%emt 0:00:00]} Qd6 {[%emt 1:03:01]} 17. h3 {[%emt 0:00:00]} c5 {[%emt 0:04:48]} 18. Nb5 {[%emt 0:00:00]} Qb8 {[%emt 0:00:28]} 19. Qc2 {[%emt 0:00:00]} Bxd3 {[%emt 0:04:18]} 20. Qxd3 {[%emt 0:00:00]} a6 {[%emt 0:00:27]} 21. Nc3 {[%emt 0:00:00]} Bd4 {[%emt 0:01:11]} 22. Rf1 {[%emt 0:00:00]} Qg3 {[%emt 0:01:42]} 23. Ne4 {[%emt 0:00:00]} Qb8 {[%emt 0:00:46]} 24. Ng3 {[%emt 0:00:00]} Qxg3 {[%emt 0:48:21]} 25. Qxd4 {[%emt 0:00:00]} Qc7 {[%emt 0:06:04]} 26. Qf4 {[%emt 0:00:00]} Rd6 {[%emt 0:01:39]} 27. Ng5 {[%emt 0:00:00]} Nh6 {[%emt 0:05:48]} 28. Ne4 {[%emt 0:10:30]} Nf5 {[%emt 0:36:38]} 29. Nxd6+ {[%emt 0:00:00]} Nxd6 {[%emt 0:00:14]} 30. b3 {[%emt 0:00:00]} Qd7 {[%emt 0:00:28]} 31. Bb2 {[%emt 0:00:00]} Rg8 {[%emt 0:01:09]} 32. Rfe1 {[%emt 0:00:00]} g5 {[%emt 0:00:20]} 33. Qe3 {[%emt 0:00:00]} f5 {[%emt 0:34:40]} 34. Qxc5+ {[%emt 0:00:00]} Kb8 {[%emt 0:00:12]} 35. Be5 {[%emt 0:00:00]} Rg6 {[%emt 0:34:04]} 36. Bxd6+ {[%emt 0:00:00]} Rxd6 {[%emt 0:00:19]} 37. Re8+ {[%emt 0:15:00]} Qxe8 {[%emt 0:00:14]} 38. Qxd6+ {[%emt 0:00:00]} Ka8 {[%emt 0:00:18]} 39. Qe6 {[%emt 0:00:00]} Qh8 {[%emt 0:00:19]} 40. Re1 {[%emt 0:00:00]} Ka7 {[%emt 0:00:11]} 41. Qe3+ {[%emt 0:47:00]} 1-0

[Event "18th Charleroi Open-C 2019"]
[Site "Charleroi"]
[Date "2019.07.29"]
[Round "4.3"]
[White "Louis, Vincent"]
[Black "Toth, Charles"]
[Result "0-1"]
[ECO "C47"]
[WhiteElo "1403"]
[BlackElo "1585"]
[Annotator "NA"]
[PlyCount "173"]
[EventDate "2019.07.22"]
[EventType "swiss"]
[EventCountry "BEL"]
[SourceTitle "playchess.com"]
[Source "ChessBase"]
[SourceQuality "1"]
[TimeControl "40/5400+30:1800+30"]

1. e4 {[%emt 0:00:00]} Nc6 {[%emt 0:00:00]} 2. Nf3 {[%emt 0:00:47]} Nf6 {[%emt 1:31:00]} 3. Nc3 {[%emt 0:01:07]} e5 {[%emt 0:00:00]} 4. d4 {[%emt 0:03:31]} Bb4 {[%emt 0:00:00]} 5. Qd3 {[%emt 0:02:39]} Bxc3+ {[%emt 0:00:00]} 6. bxc3 {[%emt 0:00:18]} Qe7 {[%emt 0:02:00]} 7. d5 {[%emt 0:02:20]} Nd8 {[%emt 0:00:00]} 8. c4 {[%emt 0:00:55]} b6 {[%emt 0:00:00]} 9. Ba3 {[%emt 0:00:22]} d6 {[%emt 0:00:00]} 10. h3 {[%emt 0:00:35]} O-O {[%emt 0:00:00]} 11. Be2 {[%emt 0:00:57]} Nh5 {[%emt 0:02:30]} 12. Qc3 {[%emt 0:06:13]} Nf4 {[%emt 0:00:00]} 13. Nxe5 {[%emt 0:04:12]} Nxe2 {[%emt 0:00:00]} 14. Kxe2 {[%emt 0:00:13]} Qxe5 {[%emt 0:00:00]} 15. Qxe5 {[%emt 0:00:15]} dxe5 {[%emt 0:00:00]} 16. Bxf8 {[%emt 0:00:19]} Kxf8 {[%emt 0:00:00]} 17. Rhd1 {[%emt 0:02:33]} Nb7 {[%emt 0:00:00]} 18. Rab1 {[%emt 0:00:38]} Nd6 {[%emt 0:00:00]} 19. f3 {[%emt 0:00:53]} Nxc4 {[%emt 0:00:00]} 20. Rb4 {[%emt 0:00:28]} Ba6 {[%emt 0:00:00]} 21. Kf2 {[%emt 0:00:42]} Nd6 {[%emt 0:00:00]} 22. a4 {[%emt 0:01:38]} Bc4 {[%emt 0:00:00]} 23. Ra1 {[%emt 0:09:00]} a5 {[%emt 0:00:00]} 24. Rb2 {[%emt 0:00:55]} Ke7 {[%emt 0:00:00]} 25. g3 {[%emt 0:00:31]} Rf8 {[%emt 0:00:00]} 26. Ke3 {[%emt 0:02:29]} Ba6 {[%emt 0:00:00]} 27. Rb3 {[%emt 0:03:17]} f5 {[%emt 0:00:00]} 28. exf5 {[%emt 0:02:55]} Nxf5+ {[%emt 0:00:00]} 29. Kf2 {[%emt 0:00:32]} Kd6 {[%emt 0:00:00]} 30. Rc3 {[%emt 0:05:26]} Bb7 {[%emt 0:00:00]} 31. Rd3 {[%emt 0:02:00]} Ba6 {[%emt 0:00:00]} 32. Rd2 {[%emt 0:00:21]} Nd4 {[%emt 0:00:00]} 33. Ra3 {[%emt 0:00:25]} Bc4 {[%emt 0:00:00]} 34. Re3 {[%emt 0:01:41]} Ba6 {[%emt 0:00:00]} 35. g4 {[%emt 0:02:26]} Rf4 {[%emt 0:00:00]} 36. Kg3 {[%emt 0:01:38]} g5 {[%emt 0:00:00]} 37. Kf2 {[%emt 0:03:21]} h6 {[%emt 0:00:00]} 38. Ra3 {[%emt 0:02:55]} Rf7 {[%emt 0:00:00]} 39. Re3 {[%emt 0:00:38]} Ne2 {[%emt 0:00:00]} 40. c3 {[%emt 0:22:14]} Nf4 {[%emt 0:00:00]} 41. Re4 {[%emt 0:30:30]} Nxh3+ {[%emt 0:00:00]} 42. Kg3 {[%emt 0:00:26]} Nf4 {[%emt 0:00:00]} 43. c4 {[%emt 0:00:06]} Bc8 {[%emt 0:00:00]} 44. Rd1 {[%emt 0:03:12]} Bd7 {[%emt 0:00:00]} 45. Ra1 {[%emt 0:01:13]} Nd3 {[%emt 0:00:00]} 46. Re2 {[%emt 0:05:24]} Nc5 {[%emt 0:00:00]} 47. Rh2 {[%emt 0:00:05]} Rf6 {[%emt 0:00:25]} 48. Rah1 {[%emt 0:00:38]} Nxa4 {[%emt 0:00:49]} 49. Rxh6 {[%emt 0:00:07]} Rxh6 {[%emt 0:02:00]} 50. Rxh6+ {[%emt 0:00:06]} Ke7 {[%emt 0:01:49]} 51. Rg6 {[%emt 0:01:02]} Nc5 {[%emt 0:00:28]} 52. Rxg5 {[%emt 0:00:24]} Kf6 {[%emt 0:00:35]} 53. Rh5 {[%emt 0:00:47]} Kg6 {[%emt 0:01:29]} 54. Rxe5 {[%emt 0:00:23]} a4 {[%emt 0:00:44]} 55. Re2 {[%emt 0:00:47]} b5 {[%emt 0:04:12]} 56. cxb5 {[%emt 0:00:10]} Bxb5 {[%emt 0:00:16]} 57. Rc2 {[%emt 0:00:35]} Na6 {[%emt 0:02:26]} 58. Rc3 {[%emt 0:01:30]} Be8 {[%emt 0:01:18]} 59. Kf4 {[%emt 0:01:14]} Kf6 {[%emt 0:00:22]} 60. Kg3 {[%emt 0:05:44]} Bd7 {[%emt 0:00:59]} 61. f4 {[%emt 0:00:21]} Ke7 {[%emt 0:01:29]} 62. f5 {[%emt 0:00:00]} Kd6 {[%emt 0:00:00]} 63. Re3 {[%emt 0:00:00]} Kxd5 {[%emt 0:00:00]} 64. f6 {[%emt 0:00:00]} Be6 {[%emt 0:00:00]} 65. g5 {[%emt 0:00:00]} Nc5 {[%emt 0:00:00]} 66. g6 {[%emt 0:00:00]} Ne4+ {[%emt 0:00:00]} 67. Kf4 {[%emt 0:00:00]} Nxf6 {[%emt 0:00:00]} 68. Ra3 {[%emt 0:00:00]} Bd7 {[%emt 0:00:00]} 69. Kg5 {[%emt 0:00:00]} Ng8 {[%emt 0:00:00]} 70. Rd3+ {[%emt 0:00:00]} Kc6 {[%emt 0:00:00]} 71. Rd4 {[%emt 0:06:27]} Be6 {[%emt 0:00:00]} 72. Rxa4 {[%emt 0:00:00]} Kb5 {[%emt 0:00:00]} 73. Re4 {[%emt 0:00:00]} Bd5 {[%emt 0:00:00]} 74. Re5 {[%emt 0:00:00]} Kc4 {[%emt 0:00:00]} 75. Re8 {[%emt 0:00:00]} Bb7 {[%emt 0:00:00]} 76. g7 {[%emt 0:00:00]} Bd5 {[%emt 0:00:00]} 77. Kg6 {[%emt 0:00:00]} c5 {[%emt 0:00:00]} 78. Rd8 {[%emt 0:00:00]} Kd4 {[%emt 0:00:00]} 79. Kh7 {[%emt 0:00:00]} Nf6+ {[%emt 0:00:00]} 80. Kg6 {[%emt 0:00:00]} Ng8 {[%emt 0:00:00]} 81. Kh7 {[%emt 0:00:00]} Ne7 {[%emt 0:00:00]} 82. Rd7 {[%emt 0:00:00]} Ng8 {[%emt 0:00:00]} 83. Rd8 {[%emt 0:00:00]} Nf6+ {[%emt 0:00:00]} 84. Kg6 {[%emt 0:00:00]} Ng8 {[%emt 0:00:00]} 85. Kh7 {[%emt 0:00:00]} Ne7 {[%emt 0:00:00]} 86. Re8 {[%emt 0:07:30]} Be4+ {[%emt 0:48:09]} 87. Kh6 {[%emt 0:00:30]} 0-1

[Event "18th Charleroi Open-C 2019"]
[Site "Charleroi"]
[Date "2019.07.29"]
[Round "4.4"]
[White "Dejasse, Daniel"]
[Black "Gaudin, Roger"]
[Result "1-0"]
[ECO "C10"]
[WhiteElo "1568"]
[BlackElo "1339"]
[Annotator "NA"]
[PlyCount "49"]
[EventDate "2019.07.22"]
[EventType "swiss"]
[EventCountry "BEL"]
[SourceTitle "playchess.com"]
[Source "ChessBase"]
[SourceQuality "1"]
[TimeControl "40/5400+30:1800+30"]

1. e4 {[%emt 0:00:00]} e6 {[%emt 0:00:13]} 2. d4 {[%emt 0:00:00]} d5 {[%emt 0:00:06]} 3. Nc3 {[%emt 0:00:00]} dxe4 {[%emt 0:05:54]} 4. Nxe4 {[%emt 0:00:00]} b6 {[%emt 0:01:20]} 5. Nf3 {[%emt 0:00:00]} Bb7 {[%emt 0:01:34]} 6. Bd3 {[%emt 0:00:00]} Nf6 {[%emt 0:03:50]} 7. Qe2 {[%emt 0:00:00]} Be7 {[%emt 0:00:00]} 8. O-O {[%emt 0:01:30]} O-O {[%emt 0:00:00]} 9. c3 {[%emt 0:00:00]} Nbd7 {[%emt 0:00:00]} 10. Bf4 {[%emt 0:00:00]} c5 {[%emt 0:00:00]} 11. Rad1 {[%emt 0:00:00]} Nh5 {[%emt 0:00:00]} 12. Be3 {[%emt 0:00:00]} Qc8 {[%emt 0:00:00]} 13. dxc5 {[%emt 0:00:00]} Nxc5 {[%emt 0:00:00]} 14. Nxc5 {[%emt 0:00:00]} Bxc5 {[%emt 0:00:00]} 15. Bxh7+ {[%emt 0:05:00]} Kxh7 {[%emt 0:00:00]} 16. Ng5+ {[%emt 0:00:00]} Kg6 {[%emt 0:05:00]} 17. g4 {[%emt 0:00:00]} Bxe3 {[%emt 0:00:00]} 18. Qxe3 {[%emt 0:00:00]} Nf6 {[%emt 0:00:00]} 19. h4 {[%emt 0:07:00]} Nxg4 {[%emt 0:00:00]} 20. h5+ {[%emt 0:00:00]} Kxh5 {[%emt 0:00:00]} 21. Qh3+ {[%emt 0:00:00]} Kxg5 {[%emt 0:00:00]} 22. f4+ {[%emt 0:00:00]} Kf5 {[%emt 0:00:00]} 23. Qh5+ {[%emt 0:00:00]} Ke4 {[%emt 0:00:00]} 24. Rd4+ {[%emt 0:00:00]} Ke3 {[%emt 0:00:00]} 25. Qh3+ {[%emt 0:00:00]} 1-0

[Event "18th Charleroi Open-C 2019"]
[Site "Charleroi"]
[Date "2019.07.30"]
[Round "5.1"]
[White "Van Hille, Clara"]
[Black "Maris, Lauri"]
[Result "1-0"]
[ECO "C46"]
[WhiteElo "1391"]
[BlackElo "1314"]
[Annotator "NA"]
[PlyCount "67"]
[EventDate "2019.07.22"]
[EventType "swiss"]
[EventCountry "BEL"]
[SourceTitle "playchess.com"]
[Source "ChessBase"]
[SourceQuality "1"]
[TimeControl "40/5400+30:1800+30"]

1. e4 {[%emt 0:00:00]} e5 {[%emt 0:00:00]} 2. Nf3 {[%emt 0:00:00]} Nc6 {[%emt 0:00:00]} 3. Nc3 {[%emt 0:00:00]} Bc5 {[%emt 0:00:00]} 4. Nxe5 {[%emt 0:00:00]} Nxe5 {[%emt 0:01:08]} 5. d4 {[%emt 0:00:00]} Bxd4 {[%emt 0:00:41]} 6. Qxd4 {[%emt 0:00:12]} Qf6 {[%emt 0:01:00]} 7. Nb5 {[%emt 0:00:22]} Kd8 {[%emt 0:02:05]} 8. Qc5 {[%emt 0:00:32]} Qe7 {[%emt 0:05:03]} 9. Qxc7+ {[%emt 0:04:51]} Ke8 {[%emt 0:00:11]} 10. Nd6+ {[%emt 0:04:41]} Kf8 {[%emt 0:00:15]} 11. Bd2 {[%emt 0:05:07]} Nc6 {[%emt 0:01:40]} 12. O-O-O {[%emt 0:08:15]} Qd8 {[%emt 0:02:22]} 13. Qxd8+ {[%emt 0:00:47]} Nxd8 {[%emt 0:00:10]} 14. Bb4 {[%emt 0:00:08]} Ne7 {[%emt 0:00:12]} 15. Nxc8 {[%emt 0:00:47]} Rxc8 {[%emt 0:00:36]} 16. Rxd7 {[%emt 0:00:18]} Ndc6 {[%emt 0:00:22]} 17. Bxe7+ {[%emt 0:00:35]} Nxe7 {[%emt 0:00:07]} 18. Rxb7 {[%emt 0:00:08]} Ra8 {[%emt 0:00:45]} 19. Bc4 {[%emt 0:01:19]} a5 {[%emt 0:01:28]} 20. Rd1 {[%emt 0:00:47]} Ng6 {[%emt 0:02:22]} 21. Rxf7+ {[%emt 0:00:21]} Ke8 {[%emt 0:00:16]} 22. Rxg7 {[%emt 0:02:30]} Rc8 {[%emt 0:00:48]} 23. Bb5+ {[%emt 0:01:22]} Kf8 {[%emt 0:00:18]} 24. Rdd7 {[%emt 0:00:49]} Ne5 {[%emt 0:01:13]} 25. Rxh7 {[%emt 0:02:32]} Rxh7 {[%emt 0:00:29]} 26. Rxh7 {[%emt 0:00:17]} Kg8 {[%emt 0:00:16]} 27. Re7 {[%emt 0:03:34]} Rc5 {[%emt 0:01:03]} 28. Be2 {[%emt 0:05:40]} Ng6 {[%emt 0:01:30]} 29. Rd7 {[%emt 0:01:58]} Nf4 {[%emt 0:00:20]} 30. Bf3 {[%emt 0:00:26]} a4 {[%emt 0:00:35]} 31. g3 {[%emt 0:01:03]} Ne6 {[%emt 0:00:35]} 32. Bg4 {[%emt 0:01:03]} Ng5 {[%emt 0:00:13]} 33. Rd4 {[%emt 0:03:50]} Ra5 {[%emt 0:01:13]} 34. Rd5 {[%emt 0:01:25]} 1-0

[Event "18th Charleroi Open-C 2019"]
[Site "Charleroi"]
[Date "2019.07.31"]
[Round "6.1"]
[White "Dejasse, Daniel"]
[Black "Van Hille, Clara"]
[Result "0-1"]
[ECO "C50"]
[WhiteElo "1568"]
[BlackElo "1391"]
[Annotator "NA"]
[PlyCount "81"]
[EventDate "2019.07.22"]
[EventType "swiss"]
[EventCountry "BEL"]
[SourceTitle "playchess.com"]
[Source "ChessBase"]
[SourceQuality "1"]
[TimeControl "40/5400+30:1800+30"]

1. e4 {[%emt 0:00:00]} e5 {[%emt 0:00:00]} 2. Nf3 {[%emt 0:00:00]} Nc6 {[%emt 0:00:00]} 3. Bc4 {[%emt 0:00:00]} Bc5 {[%emt 0:00:00]} 4. O-O {[%emt 0:00:00]} d6 {[%emt 0:00:26]} 5. c3 {[%emt 0:00:11]} Nf6 {[%emt 0:04:20]} 6. d4 {[%emt 0:05:13]} Bb6 {[%emt 0:03:12]} 7. dxe5 {[%emt 0:07:21]} Nxe5 {[%emt 0:01:21]} 8. Nxe5 {[%emt 0:00:38]} dxe5 {[%emt 0:00:10]} 9. Qxd8+ {[%emt 0:01:12]} Kxd8 {[%emt 0:00:13]} 10. Bg5 {[%emt 0:07:38]} Ke7 {[%emt 0:04:20]} 11. Nd2 {[%emt 0:03:21]} Be6 {[%emt 0:09:29]} 12. Bxe6 {[%emt 0:07:53]} Kxe6 {[%emt 0:01:46]} 13. Nc4 {[%emt 0:00:26]} Nxe4 {[%emt 0:05:00]} 14. Nxb6 {[%emt 0:01:19]} axb6 {[%emt 0:00:31]} 15. Bh4 {[%emt 0:04:42]} Nd6 {[%emt 0:08:56]} 16. Rfe1 {[%emt 0:05:23]} f6 {[%emt 0:03:48]} 17. f4 {[%emt 0:03:21]} e4 {[%emt 0:05:34]} 18. g4 {[%emt 0:07:18]} g6 {[%emt 0:05:37]} 19. f5+ {[%emt 0:08:38]} Kf7 {[%emt 0:04:27]} 20. Bg3 {[%emt 0:01:07]} Rhe8 {[%emt 0:00:43]} 21. Bxd6 {[%emt 0:03:27]} cxd6 {[%emt 0:00:46]} 22. Rad1 {[%emt 0:10:49]} Rad8 {[%emt 0:01:39]} 23. Rd5 {[%emt 0:02:13]} gxf5 {[%emt 0:07:20]} 24. gxf5 {[%emt 0:00:31]} Re5 {[%emt 0:05:32]} 25. Rxe5 {[%emt 0:07:50]} dxe5 {[%emt 0:06:10]} 26. Rxe4 {[%emt 0:02:27]} Rd1+ {[%emt 0:07:27]} 27. Kf2 {[%emt 0:00:07]} Rd2+ {[%emt 0:00:12]} 28. Re2 {[%emt 0:00:34]} Rxe2+ {[%emt 0:01:00]} 29. Kxe2 {[%emt 0:00:06]} Ke7 {[%emt 0:00:05]} 30. Kd3 {[%emt 0:00:41]} Kd6 {[%emt 0:00:13]} 31. Kc4 {[%emt 0:01:29]} b5+ {[%emt 0:04:26]} 32. Kd3 {[%emt 0:01:59]} Kd5 {[%emt 0:00:49]} 33. b3 {[%emt 0:00:23]} e4+ {[%emt 0:03:36]} 34. Ke3 {[%emt 0:01:13]} Ke5 {[%emt 0:01:28]} 35. a4 {[%emt 0:01:29]} bxa4 {[%emt 0:00:44]} 36. bxa4 {[%emt 0:00:56]} Kxf5 37. c4 {[%emt 0:01:59]} Ke5 {[%emt 0:00:56]} 38. c5 {[%emt 0:00:22]} f5 {[%emt 0:00:17]} 39. c6 {[%emt 0:00:40]} f4+ {[%emt 0:00:07]} 40. Ke2 {[%emt 0:00:51]} bxc6 {[%emt 0:00:59]} 41. a5 {[%emt 0:30:09]} 0-1